[Event "45th FIDE Olympiad 2024"]
[Site "Budapest"]
[Date "2024.09.15"]
[Round "5.186"]
[White "Gemy, Jose Daniel"]
[Black "Tsige, Addisalem Temesgen"]
[Result "1-0"]
[ECO "A37"]
[WhiteElo "2315"]
[BlackElo "2068"]
[PlyCount "123"]
[EventDate "2024.09.05"]
[EventType "team-tourn"]
[EventCountry "HUN"]
[WhiteTeam "Bolivia"]
[BlackTeam "Ethiopia"]
[WhiteTeamCountry "BOL"]
[BlackTeamCountry "ETH"]
[TimeControl "40/5400+30:1800+30"]

1. Nf3 c5 2. g3 g6 3. Bg2 Bg7 4. O-O Nc6 5. c4 e5 6. Nc3 Nge7 7. Ne1 d6 8. Nc2 Be6 9. Ne3 O-O 10. a3 Qd7 11. Ned5 Bh3 12. b4 Bxg2 13. Kxg2 Nxd5 14. Nxd5 Ne7 15. bxc5 Nxd5 16. cxd5 e4 17. Rb1 dxc5 18. Qb3 b6 19. d3 Rfe8 20. e3 Qg4 21. dxe4 Qxe4+ 22. f3 Qe7 23. e4 Rad8 24. Re1 Bd4 25. Bf4 g5 26. Bd2 Qf6 27. a4 Kg7 28. Qc4 h5 29. Qc1 g4 30. f4 h4 31. Qd1 Qg6 32. f5 Qh5 33. h3 hxg3 34. Qxg4+ Qxg4 35. hxg4 Bf2 36. Bc3+ Kf8 37. Bf6 Rd6 38. g5 Rxf6 39. gxf6 Bd4 40. Kxg3 Bxf6 41. Rbc1 Be5+ 42. Kf3 Ke7 43. Ke3 Rg8 44. Kd3 Rg3+ 45. Kc4 Kd6 46. Rb1 Kc7 47. Rb3 Rg2 48. a5 Ra2 49. axb6+ axb6 50. Rc1 Bf4 51. Rcb1 Ra4+ 52. Kc3 Be5+ 53. Kc2 Rxe4 54. Rxb6 Rc4+ 55. Kd3 Rd4+ 56. Ke3 c4 57. Rc6+ Kd7 58. Rb7+ Kd8 59. Ra6 Kc8 60. Rxf7 Rd3+ 61. Ke4 Bc7 62. Rc6 1-0

[Event "45th FIDE Olympiad 2024"]
[Site "Budapest"]
[Date "2024.09.15"]
[Round "5.187"]
[White "Kebede, Yoseph Kifle"]
[Black "Ticona Rocabado, Licael Roderick"]
[Result "1/2-1/2"]
[ECO "D02"]
[WhiteElo "2037"]
[BlackElo "2321"]
[PlyCount "66"]
[EventDate "2024.09.05"]
[EventType "team-tourn"]
[EventCountry "HUN"]
[WhiteTeam "Ethiopia"]
[BlackTeam "Bolivia"]
[WhiteTeamCountry "ETH"]
[BlackTeamCountry "BOL"]
[TimeControl "40/5400+30:1800+30"]

1. Nf3 d5 2. d4 e6 3. Bf4 Nf6 4. e3 Bd6 5. Nbd2 O-O 6. Bd3 c5 7. Bg3 Nc6 8. c3 Qe7 9. Ne5 Nd7 10. f4 f6 11. Nxc6 bxc6 12. O-O Rb8 13. Qc2 g6 14. Rae1 c4 15. Be2 e5 16. e4 exf4 17. Bxf4 Bxf4 18. Rxf4 f5 19. exd5 cxd5 20. Rff1 Qd6 21. b4 Nf6 22. Bf3 f4 23. Re5 Bf5 24. Qc1 Rf7 25. Rfe1 Qd7 26. Qa3 g5 27. Qa5 Rb5 28. Qa4 a6 29. Qxa6 Rb7 30. Qa5 Ra7 31. Qc5 Rc7 32. Qa5 Ra7 33. Qc5 Rc7 1/2-1/2

[Event "45th FIDE Olympiad 2024"]
[Site "Budapest"]
[Date "2024.09.15"]
[Round "5.188"]
[White "Montevilla Cahuasa, Jonathan I."]
[Black "Shiferaw, Yalemzewde Mekonnen"]
[Result "1-0"]
[ECO "B12"]
[WhiteElo "2064"]
[BlackElo "2025"]
[PlyCount "71"]
[EventDate "2024.09.05"]
[EventType "team-tourn"]
[EventCountry "HUN"]
[WhiteTeam "Bolivia"]
[BlackTeam "Ethiopia"]
[WhiteTeamCountry "BOL"]
[BlackTeamCountry "ETH"]
[TimeControl "40/5400+30:1800+30"]

1. e4 c6 2. d4 d5 3. e5 Bf5 4. h4 h6 5. g4 Bc8 6. c4 e6 7. Nc3 Ne7 8. b3 Nd7 9. Nf3 b6 10. Be3 Bb7 11. Bg2 h5 12. Ng5 hxg4 13. Qxg4 Nf5 14. Nxe6 Nxe3 15. fxe3 fxe6 16. Qg6+ Ke7 17. Rf1 Qc7 18. Bh3 Kd8 19. Bxe6 b5 20. Rf7 Be7 21. Qxg7 Re8 22. Kd2 Qa5 23. Raf1 dxc4 24. Bxd7 Kxd7 25. R1f6 Kd8 26. Rxe7 Rxe7 27. Rd6+ Kc7 28. Qxe7+ Kb6 29. b4 Qa3 30. Nd5+ Ka6 31. Nc7+ Kb6 32. Nxa8+ Bxa8 33. Qd8+ Ka6 34. Qa5+ Qxa5 35. bxa5 Kxa5 36. e6 1-0

[Event "45th FIDE Olympiad 2024"]
[Site "Budapest"]
[Date "2024.09.15"]
[Round "5.189"]
[White "Al Hosani, Omran"]
[Black "Allam, Mohamed"]
[Result "1/2-1/2"]
[ECO "E05"]
[WhiteElo "2241"]
[BlackElo "2053"]
[PlyCount "89"]
[EventDate "2024.09.05"]
[EventType "team-tourn"]
[EventCountry "HUN"]
[WhiteTeam "United Arab Emirates"]
[BlackTeam "Palestine"]
[WhiteTeamCountry "UAE"]
[BlackTeamCountry "PLE"]
[TimeControl "40/5400+30:1800+30"]

1. d4 d5 2. c4 e6 3. Nf3 a6 4. g3 dxc4 5. Bg2 Nc6 6. O-O Be7 7. e4 Nf6 8. Nc3 O-O 9. d5 exd5 10. exd5 Nb4 11. Ne5 Bf5 12. a3 Nd3 13. Nxc4 Nxc1 14. Rxc1 Rb8 15. Ne3 Bd7 16. Qd3 Ne8 17. Rfd1 Nd6 18. Ne4 Nxe4 19. Bxe4 h6 20. Qc4 Bd6 21. Bf5 Bxf5 22. Nxf5 Qf6 23. Nxd6 cxd6 24. Qd4 Qxd4 25. Rxd4 Rbc8 26. Rdc4 Rxc4 27. Rxc4 Re8 28. Rc7 Re5 29. Rxb7 Rxd5 30. Rb6 a5 31. Rb8+ Kh7 32. a4 Kg6 33. Rb5 Rd2 34. b3 Rb2 35. Kg2 Kf6 36. Kf3 Ke6 37. Ke3 Rc2 38. h4 Rc5 39. Rb7 g5 40. hxg5 hxg5 41. g4 Re5+ 42. Kd3 Rd5+ 43. Ke3 Re5+ 44. Kd3 Rd5+ 45. Ke4 1/2-1/2

[Event "45th FIDE Olympiad 2024"]
[Site "Budapest"]
[Date "2024.09.15"]
[Round "5.190"]
[White "Seder, Mohammed"]
[Black "Ammar, Sedrani"]
[Result "0-1"]
[ECO "B12"]
[WhiteElo "2116"]
[BlackElo "2226"]
[PlyCount "64"]
[EventDate "2024.09.05"]
[EventType "team-tourn"]
[EventCountry "HUN"]
[WhiteTeam "Palestine"]
[BlackTeam "United Arab Emirates"]
[WhiteTeamCountry "PLE"]
[BlackTeamCountry "UAE"]
[TimeControl "40/5400+30:1800+30"]

1. e4 c6 2. d4 d5 3. e5 Bf5 4. h4 h5 5. Bd3 Bxd3 6. Qxd3 e6 7. Bg5 Qb6 8. Nd2 Ne7 9. Ne2 Nd7 10. O-O c5 11. c3 Nf5 12. Nf3 Be7 13. Bxe7 Nxe7 14. Rab1 O-O-O 15. Nf4 Kb8 16. a4 g6 17. Rfe1 Rc8 18. g3 Nf5 19. b3 Rhe8 20. Ng2 cxd4 21. cxd4 Qb4 22. Rec1 f6 23. Nf4 fxe5 24. Nxe5 Nxe5 25. dxe5 Qe7 26. Qd2 Rcd8 27. Re1 g5 28. Ng6 Qf7 29. Qxg5 Rg8 30. Qxh5 Rxg6 31. Qf3 Qg7 32. Qe2 Rg8 {0-} 0-1

[Event "45th FIDE Olympiad 2024"]
[Site "Budapest"]
[Date "2024.09.15"]
[Round "5.191"]
[White "Ahmed, Fareed"]
[Black "Abdel Wahab, Ahmad"]
[Result "1-0"]
[ECO "B50"]
[WhiteElo "2061"]
[BlackElo "1995"]
[PlyCount "103"]
[EventDate "2024.09.05"]
[EventType "team-tourn"]
[EventCountry "HUN"]
[WhiteTeam "United Arab Emirates"]
[BlackTeam "Palestine"]
[WhiteTeamCountry "UAE"]
[BlackTeamCountry "PLE"]
[TimeControl "40/5400+30:1800+30"]

1. e4 c5 2. Nf3 d6 3. c3 Nf6 4. Be2 Nc6 5. d4 cxd4 6. cxd4 Qa5+ 7. Nbd2 g6 8. O-O Bg7 9. Nc4 Qd8 10. d5 Nb8 11. Qd3 O-O 12. Be3 Bg4 13. Rac1 Nbd7 14. b4 Nb6 15. Nd4 Nxc4 16. Rxc4 Bxe2 17. Nxe2 Ng4 18. Bd4 Ne5 19. Bxe5 Bxe5 20. Rfc1 Qb6 21. a4 a5 22. b5 f5 23. Qe3 Qxe3 24. fxe3 b6 25. Nf4 Bxf4 26. exf4 fxe4 27. Rxe4 Ra7 28. g4 h5 29. h3 hxg4 30. hxg4 Kf7 31. Kg2 Rh8 32. Kg3 Rb7 33. Rec4 Kf6 34. Rc8 Rb8 35. Rxb8 Rxb8 36. Rc6 Kf7 37. Kf3 Rh8 38. Kg2 Rb8 39. Kh3 Rh8+ 40. Kg2 Rb8 41. g5 Kg7 42. Kg3 Kf7 43. Kg4 Kg7 44. Rc7 Kf7 45. f5 Rh8 46. f6 Rh1 47. Rxe7+ Kf8 48. Rg7 Rg1+ 49. Kf4 Ra1 50. Rxg6 Rxa4+ 51. Kf5 Ra1 52. Rh6 1-0

[Event "45th FIDE Olympiad 2024"]
[Site "Budapest"]
[Date "2024.09.15"]
[Round "5.192"]
[White "Miswadah, Baha"]
[Black "Sultan, Ibrahim"]
[Result "0-1"]
[ECO "D00"]
[WhiteElo "1957"]
[BlackElo "2206"]
[PlyCount "118"]
[EventDate "2024.09.05"]
[EventType "team-tourn"]
[EventCountry "HUN"]
[WhiteTeam "Palestine"]
[BlackTeam "United Arab Emirates"]
[WhiteTeamCountry "PLE"]
[BlackTeamCountry "UAE"]
[TimeControl "40/5400+30:1800+30"]

1. d4 d5 2. Bf4 Nf6 3. e3 c5 4. c3 Nc6 5. Nd2 Bf5 6. Qb3 Qd7 7. a4 c4 8. Qd1 e6 9. Ngf3 Bd6 10. Bxd6 Qxd6 11. a5 O-O 12. Be2 b5 13. axb6 axb6 14. Nh4 b5 15. Nxf5 exf5 16. O-O g6 17. b3 Ra3 18. bxc4 bxc4 19. Qc2 Kg7 20. Bf3 Rfa8 21. Rxa3 Rxa3 22. Qb2 Na5 23. Ra1 Rxa1+ 24. Qxa1 Qb6 25. g3 Nb3 26. Qb2 Ne4 27. Bxe4 fxe4 28. f3 f5 29. Kf2 Qb5 30. fxe4 fxe4 31. Qa2 Qb7 32. Nf1 Nc1 33. Qd2 Qf7+ 34. Kg1 Nd3 35. Qe2 h5 36. Nd2 Qa7 37. Nf1 Qa1 38. Qd2 Kf7 39. h3 Qb2 40. h4 Ke6 41. g4 hxg4 42. Kg2 Kf5 43. Ng3+ Kf6 44. Qxb2 Nxb2 45. Ne2 Nd1 46. Nf4 Nxc3 47. Kf2 g5 48. hxg5+ Kxg5 49. Kg3 Na2 50. Nxd5 c3 51. Nf4 c2 52. Ne2 c1=Q 53. Nxc1 Nxc1 54. d5 Nd3 55. d6 Ne5 56. Kg2 Kh4 57. Kh2 g3+ 58. Kh1 Kh3 59. Kg1 g2 {0-} 0-1

[Event "45th FIDE Olympiad 2024"]
[Site "Budapest"]
[Date "2024.09.15"]
[Round "5.193"]
[White "Ferster, Fabian"]
[Black "Valdes Romero, Leonardo"]
[Result "1/2-1/2"]
[ECO "B23"]
[WhiteElo "2184"]
[BlackElo "2347"]
[PlyCount "88"]
[EventDate "2024.09.05"]
[EventType "team-tourn"]
[EventCountry "HUN"]
[WhiteTeam "Liechtenstein"]
[BlackTeam "Costa Rica"]
[WhiteTeamCountry "LIE"]
[BlackTeamCountry "CRI"]
[TimeControl "40/5400+30:1800+30"]

1. e4 c5 2. Nc3 d6 3. d4 cxd4 4. Qxd4 Nc6 5. Qd2 g6 6. b3 Bg7 7. Bb2 Nf6 8. O-O-O O-O 9. f3 h5 10. h3 Qa5 11. g4 Be6 12. Kb1 Rfc8 13. Nge2 Rab8 14. Nd5 Qxd2 15. Nxf6+ Bxf6 16. Rxd2 Bxb2 17. Kxb2 hxg4 18. hxg4 Kg7 19. Nf4 Rh8 20. Rdh2 Rxh2 21. Rxh2 Ne5 22. Be2 g5 23. Nd3 Nxd3+ 24. cxd3 Rc8 25. Bd1 Bd7 26. Rc2 Kf6 27. Rxc8 Bxc8 28. d4 e5 29. d5 Ke7 30. Kc3 Kd8 31. Be2 Bd7 32. Bd3 Kc7 33. Be2 Kb6 34. Bd3 a5 35. a3 Be8 36. Be2 Kc5 37. Bf1 Bd7 38. Be2 Be8 39. Bf1 Bb5 40. Bxb5 Kxb5 41. Kd3 Kc5 42. Kc3 Kb5 43. Kd3 Kc5 44. Kc3 Kb5 1/2-1/2

[Event "45th FIDE Olympiad 2024"]
[Site "Budapest"]
[Date "2024.09.15"]
[Round "5.194"]
[White "Jimenez Garcia, Emmanuel"]
[Black "Krieger, Markus"]
[Result "1-0"]
[ECO "A09"]
[WhiteElo "2352"]
[BlackElo "2153"]
[PlyCount "81"]
[EventDate "2024.09.05"]
[EventType "team-tourn"]
[EventCountry "HUN"]
[WhiteTeam "Costa Rica"]
[BlackTeam "Liechtenstein"]
[WhiteTeamCountry "CRI"]
[BlackTeamCountry "LIE"]
[TimeControl "40/5400+30:1800+30"]

1. Nf3 d5 2. e3 c5 3. c4 d4 4. b4 g6 5. exd4 cxd4 6. d3 Bg7 7. Be2 e5 8. O-O Ne7 9. Nbd2 O-O 10. Re1 Qc7 11. Bf1 Re8 12. a4 a5 13. b5 Nd7 14. Nb3 Nc5 15. Nxc5 Qxc5 16. Ba3 Qc7 17. g3 Bf5 18. Qb3 Rad8 19. Bg2 h6 20. Nd2 Bf8 21. Rac1 Kg7 22. Ne4 Nc8 23. c5 Be6 24. Qb2 f5 25. Nd6 Nxd6 26. cxd6 Qf7 27. Rc7 Rd7 28. b6 Qf6 29. Qb5 Red8 30. Bxb7 Kg8 31. Bd5 Bxd5 32. Rxd7 Rxd7 33. Qxd5+ Kh7 34. Qxe5 Qd8 35. Qxa5 Bxd6 36. Bxd6 Rxd6 37. Qa7+ Rd7 38. b7 Qc7 39. Rb1 f4 40. Qa8 fxg3 41. b8=Q 1-0

[Event "45th FIDE Olympiad 2024"]
[Site "Budapest"]
[Date "2024.09.15"]
[Round "5.195"]
[White "Heron, Andrew"]
[Black "Cabezas Solano, David Alejandro"]
[Result "1-0"]
[ECO "B53"]
[WhiteElo "2026"]
[BlackElo "2248"]
[PlyCount "111"]
[EventDate "2024.09.05"]
[EventType "team-tourn"]
[EventCountry "HUN"]
[WhiteTeam "Liechtenstein"]
[BlackTeam "Costa Rica"]
[WhiteTeamCountry "LIE"]
[BlackTeamCountry "CRI"]
[TimeControl "40/5400+30:1800+30"]

1. e4 c5 2. Nf3 d6 3. d4 cxd4 4. Qxd4 Nc6 5. Bb5 Bd7 6. Qd3 g6 7. O-O Bg7 8. c4 Nf6 9. Nc3 O-O 10. h3 Nb4 11. Qe2 a6 12. Bxd7 Nxd7 13. Bd2 Rc8 14. Rac1 Nc5 15. Rfd1 Nc6 16. b3 Rb8 17. Bf4 Qa5 18. Nd5 Ne6 19. Be3 Rfe8 20. a4 Qd8 21. c5 Kh8 22. cxd6 exd6 23. b4 Ne7 24. Ng5 Rf8 25. Nxe6 fxe6 26. Bb6 Qe8 27. Nxe7 Qxe7 28. Bc7 Be5 29. Bxb8 Rxb8 30. Rc2 Rf8 31. g3 Qf6 32. Rdc1 Bd4 33. Rc8 Bxf2+ 34. Kg2 Bd4 35. Rxf8+ Qxf8 36. Qf3 Qe7 37. Rc4 Be5 38. b5 axb5 39. axb5 b6 40. Rc6 Bd4 41. Qf4 e5 42. Rc7 exf4 43. Rxe7 fxg3 44. Kxg3 Kg8 45. Rd7 h6 46. Kg4 Be5 47. h4 Kf8 48. h5 gxh5+ 49. Kxh5 Bf4 50. Kg6 Ke8 51. Rb7 Be3 52. Kf6 Kd8 53. Ke6 Kc8 54. Rh7 Bf4 55. Kd5 Kb8 56. Kc6 1-0

[Event "45th FIDE Olympiad 2024"]
[Site "Budapest"]
[Date "2024.09.15"]
[Round "5.196"]
[White "Pastor Carvajal, Jeigoth"]
[Black "Frick, Renato"]
[Result "1/2-1/2"]
[ECO "C48"]
[WhiteElo "2120"]
[BlackElo "1925"]
[PlyCount "63"]
[EventDate "2024.09.05"]
[EventType "team-tourn"]
[EventCountry "HUN"]
[WhiteTeam "Costa Rica"]
[BlackTeam "Liechtenstein"]
[WhiteTeamCountry "CRI"]
[BlackTeamCountry "LIE"]
[TimeControl "40/5400+30:1800+30"]

1. e4 e5 2. Nf3 Nc6 3. Nc3 Nf6 4. Bb5 Nd4 5. Nxd4 exd4 6. e5 dxc3 7. exf6 Qxf6 8. dxc3 Qe5+ 9. Qe2 Qxe2+ 10. Bxe2 Bc5 11. Bf4 d6 12. O-O Bd7 13. Rfe1 O-O-O 14. Bc4 Rde8 15. Kf1 Be6 16. Bd3 h6 17. c4 Bd7 18. Rxe8+ Rxe8 19. Re1 Rxe1+ 20. Kxe1 Bd4 21. Bc1 Kd8 22. c3 Bb6 23. Ke2 Ke7 24. Be3 Bg4+ 25. f3 Be6 26. Bxb6 axb6 27. b3 f5 28. f4 Kf6 29. Ke3 g5 30. g3 Bd7 31. Be2 Bc6 32. Bd3 1/2-1/2

[Event "45th FIDE Olympiad 2024"]
[Site "Budapest"]
[Date "2024.09.15"]
[Round "5.197"]
[White "Almedina Ortiz, Edgardo J."]
[Black "Xie, Felix"]
[Result "1-0"]
[ECO "E46"]
[WhiteElo "2196"]
[BlackElo "2320"]
[PlyCount "95"]
[EventDate "2024.09.05"]
[EventType "team-tourn"]
[EventCountry "HUN"]
[WhiteTeam "Puerto Rico"]
[BlackTeam "New Zealand"]
[WhiteTeamCountry "PUR"]
[BlackTeamCountry "NZL"]
[TimeControl "40/5400+30:1800+30"]

1. d4 Nf6 2. c4 e6 3. Nc3 Bb4 4. e3 O-O 5. Bd2 c5 6. Nge2 cxd4 7. exd4 d5 8. c5 Nc6 9. a3 Bxc3 10. Bxc3 Ne4 11. g3 Qf6 12. f4 b6 13. cxb6 axb6 14. Bg2 Nxc3 15. bxc3 Na5 16. O-O Nc4 17. Qc1 Qf5 18. Qb1 Qxb1 19. Rfxb1 Ra6 20. f5 g5 21. fxg6 hxg6 22. Nf4 Bd7 23. h4 Rc8 24. Bf1 Rca8 25. Rb3 b5 26. Nd3 Ra5 27. Ne5 Be8 28. Bd3 Kg7 29. Kf2 f6 30. Nf3 Bc6 31. Re1 Kf7 32. g4 Nd6 33. Ra1 Nc4 34. g5 Be8 35. Kg3 Nxa3 36. gxf6 Kxf6 37. Re1 Nc4 38. Ng5 R8a6 39. Bxc4 dxc4 40. Rb2 Ra3 41. Re3 Rb6 42. d5 b4 43. d6 Rxd6 44. Ne4+ Ke7 45. Nxd6 bxc3 46. Nxc4 cxb2 47. Nxa3 Bc6 48. Rb3 1-0

[Event "45th FIDE Olympiad 2024"]
[Site "Budapest"]
[Date "2024.09.15"]
[Round "5.198"]
[White "Middelburg, Tom"]
[Black "Rodriguez Santiago, Jaime"]
[Result "1-0"]
[ECO "B15"]
[WhiteElo "2355"]
[BlackElo "2002"]
[PlyCount "117"]
[EventDate "2024.09.05"]
[EventType "team-tourn"]
[EventCountry "HUN"]
[WhiteTeam "New Zealand"]
[BlackTeam "Puerto Rico"]
[WhiteTeamCountry "NZL"]
[BlackTeamCountry "PUR"]
[TimeControl "40/5400+30:1800+30"]

1. e4 c6 2. d4 d5 3. Nc3 dxe4 4. Nxe4 Nf6 5. Nxf6+ exf6 6. c3 Bd6 7. Bd3 O-O 8. Qc2 Re8+ 9. Ne2 h5 10. O-O h4 11. h3 Nd7 12. Bd2 Nf8 13. Rae1 Qc7 14. c4 Ne6 15. f4 Qd8 16. Kh1 Bc7 17. d5 Nf8 18. Nc3 Bd7 19. f5 Bg3 20. Rxe8 Bxe8 21. Bf4 cxd5 22. cxd5 Rc8 23. Bxg3 hxg3 24. Be4 b5 25. a3 a5 26. Qd3 b4 27. axb4 axb4 28. Ne2 Qb6 29. Qxg3 Bb5 30. Nf4 Bxf1 31. Nh5 Ng6 32. fxg6 Kf8 33. Kh2 Qb8 34. d6 Rd8 35. Kg1 Be2 36. Nf4 Bc4 37. Bd3 Qxd6 38. Bxc4 Qd4+ 39. Kh2 Qxc4 40. Qh4 Qc7 41. Qg3 Qe5 42. gxf7 Kxf7 43. Qb3+ Kf8 44. Qxb4+ Kg8 45. g3 Qe3 46. Qc4+ Kh8 47. h4 Qd2+ 48. Kh3 Qd7+ 49. Kh2 Qf5 50. Qe2 Rc8 51. Nd3 Qb5 52. Qe4 Rc2+ 53. Kh3 Qd7+ 54. g4 Rd2 55. Nf4 Qd8 56. h5 Qb8 57. g5 Qc8+ 58. Kg3 Rxb2 59. Ng6+ 1-0

[Event "45th FIDE Olympiad 2024"]
[Site "Budapest"]
[Date "2024.09.15"]
[Round "5.199"]
[White "Zilleruelo Irizarry, Diego"]
[Black "Croad, Nicolas"]
[Result "1-0"]
[ECO "E51"]
[WhiteElo "2041"]
[BlackElo "2195"]
[PlyCount "45"]
[EventDate "2024.09.05"]
[EventType "team-tourn"]
[EventCountry "HUN"]
[WhiteTeam "Puerto Rico"]
[BlackTeam "New Zealand"]
[WhiteTeamCountry "PUR"]
[BlackTeamCountry "NZL"]
[TimeControl "40/5400+30:1800+30"]

1. d4 Nf6 2. c4 e6 3. Nc3 Bb4 4. e3 O-O 5. Bd2 d5 6. Nf3 c5 7. a3 Bxc3 8. Bxc3 Ne4 9. Qc2 cxd4 10. exd4 Nxc3 11. bxc3 Nd7 12. Bd3 Nf6 13. O-O dxc4 14. Bxc4 b6 15. Rfe1 Bb7 16. Ne5 Qc7 17. Re3 g6 18. Rae1 Ng4 19. Nxg4 Qxc4 20. Qd2 Qc6 21. d5 exd5 22. Qd4 f6 23. Re6 1-0

[Event "45th FIDE Olympiad 2024"]
[Site "Budapest"]
[Date "2024.09.15"]
[Round "5.200"]
[White "Gong, Daniel Hanwen"]
[Black "Mejias Nunez, Rafael E."]
[Result "1/2-1/2"]
[ECO "C43"]
[WhiteElo "2240"]
[BlackElo "2026"]
[PlyCount "92"]
[EventDate "2024.09.05"]
[EventType "team-tourn"]
[EventCountry "HUN"]
[WhiteTeam "New Zealand"]
[BlackTeam "Puerto Rico"]
[WhiteTeamCountry "NZL"]
[BlackTeamCountry "PUR"]
[TimeControl "40/5400+30:1800+30"]

1. e4 e5 2. Nf3 Nf6 3. d4 Nxe4 4. Bd3 d5 5. Nxe5 Nd7 6. Nc3 Nxc3 7. bxc3 Nxe5 8. dxe5 Bc5 9. O-O O-O 10. Rb1 c6 11. Re1 Qh4 12. Be3 Bxe3 13. Rxe3 b5 14. Rb4 Qg5 15. g3 g6 16. Rh4 Qe7 17. Qf3 Be6 18. Rf4 Rab8 19. h4 c5 20. Bf1 a5 21. h5 b4 22. c4 Rbd8 23. Bd3 dxc4 24. Bxc4 Bxc4 25. Rxc4 Rd4 26. Rxd4 cxd4 27. Re4 Qe6 28. h6 Re8 29. Qf4 Kf8 30. Kh2 Qf5 31. Qxf5 gxf5 32. Rxd4 Rxe5 33. Rd8+ Re8 34. Rd5 Re6 35. Rxf5 Rxh6+ 36. Kg2 Rc6 37. Rxa5 Rxc2 38. Kf3 Kg7 39. Ke3 Kg6 40. f3 h5 41. Ra4 Rc3+ 42. Ke4 b3 43. axb3 Rxb3 44. Kf4 f6 45. Re4 Ra3 46. Re2 Rb3 1/2-1/2

[Event "45th FIDE Olympiad 2024"]
[Site "Budapest"]
[Date "2024.09.15"]
[Round "5.201"]
[White "Camacho Collados, Jose"]
[Black "Oatlhotse, Providence"]
[Result "1/2-1/2"]
[ECO "B08"]
[WhiteElo "2352"]
[BlackElo "2239"]
[PlyCount "194"]
[EventDate "2024.09.05"]
[EventType "team-tourn"]
[EventCountry "HUN"]
[WhiteTeam "Wales"]
[BlackTeam "Botswana"]
[WhiteTeamCountry "WLS"]
[BlackTeamCountry "BOT"]
[TimeControl "40/5400+30:1800+30"]

1. e4 g6 2. d4 Bg7 3. Nc3 d6 4. Be3 a6 5. a4 Nf6 6. h3 O-O 7. Nf3 Nc6 8. d5 Nb4 9. a5 c5 10. Bc4 e6 11. dxe6 Bxe6 12. Bxe6 fxe6 13. O-O Qc7 14. Ng5 Rae8 15. e5 dxe5 16. Nce4 Nxe4 17. Nxe4 Qc6 18. f3 Rd8 19. Qe2 Nd5 20. Bxc5 Rf7 21. Qf2 Nf6 22. Nc3 Rc8 23. Ba7 Bf8 24. Rad1 Bb4 25. Rd3 Bxa5 26. Qe3 b6 27. Qxe5 Qc5+ 28. Qxc5 bxc5 29. Re1 Nd5 30. Rxe6 Nf4 31. Rxa6 Bxc3 32. Rdd6 Be5 33. Rd1 Ra8 34. Rda1 Bd4+ 35. Kf1 Nh5 36. c3 Ng3+ 37. Ke1 Re8+ 38. Kd2 Bf2 39. Kd3 Rf4 40. Rd6 c4+ 41. Kc2 Nf5 42. Rd2 Bxa7 43. Rxa7 Ne3+ 44. Kb1 Rf7 45. Ra4 Rb7 46. Re2 Kf7 47. Ka2 Ree7 48. h4 h5 49. g4 Ra7 50. Rxa7 Rxa7+ 51. Kb1 Re7 52. gxh5 gxh5 53. Rd2 Kf6 54. Rd4 Rc7 55. Rd6+ Kg7 56. Re6 Nf5 57. Re4 Kf6 58. Kc2 Rg7 59. Rf4 Ke5 60. Re4+ Kd5 61. Rf4 Rg2+ 62. Kc1 Nd6 63. Rd4+ Kc5 64. Rf4 Rh2 65. Kb1 Kd5 66. Ka2 Ke5 67. Rd4 Rf2 68. Rd1 Rxf3 69. Rg1 Ne4 70. Ka3 Rg3 71. Re1 Kd5 72. Rd1+ Rd3 73. Rf1 Nd6 74. Rg1 Rf3 75. Kb4 Rf2 76. Rg5+ Rf5 77. Rg1 Kc6 78. Rg6 Rf4 79. Rg5 Rxh4 80. Rc5+ Kd7 81. Rd5 Rh2 82. Kc5 Rxb2 83. Rxd6+ Ke7 84. Rh6 Rh2 85. Kxc4 Kf7 86. Kd5 Kg7 87. Ra6 h4 88. Ke4 Rg2 89. Kf3 Rg3+ 90. Kf2 Rg4 91. Kf3 Rg3+ 92. Kf2 Rxc3 93. Kg2 Rg3+ 94. Kh2 Kh7 95. Ra4 Rg6 96. Rxh4+ Rh6 97. Rxh6+ Kxh6 1/2-1/2

[Event "45th FIDE Olympiad 2024"]
[Site "Budapest"]
[Date "2024.09.15"]
[Round "5.202"]
[White "Notha, Moakofi"]
[Black "Kozusek, Daniel"]
[Result "1-0"]
[ECO "C00"]
[WhiteElo "1996"]
[BlackElo "2367"]
[PlyCount "115"]
[EventDate "2024.09.05"]
[EventType "team-tourn"]
[EventCountry "HUN"]
[WhiteTeam "Botswana"]
[BlackTeam "Wales"]
[WhiteTeamCountry "BOT"]
[BlackTeamCountry "WLS"]
[TimeControl "40/5400+30:1800+30"]

1. e4 e6 2. d3 d5 3. Nd2 Nf6 4. Ngf3 Be7 5. g3 a5 6. Bg2 a4 7. O-O a3 8. bxa3 O-O 9. c4 dxe4 10. dxe4 Nc6 11. e5 Nd7 12. Qe2 Ndxe5 13. Nxe5 Nxe5 14. Nb3 Nc6 15. Rd1 Qe8 16. c5 Bf6 17. Bb2 Bxb2 18. Qxb2 e5 19. Rd2 f6 20. Bd5+ Be6 21. Re1 Rd8 22. Red1 Bxd5 23. Rxd5 Qe6 24. Rxd8 Rxd8 25. Rxd8+ Nxd8 26. Na5 Qd5 27. Qb3 c6 28. Qb6 Qd7 29. h4 Qd1+ 30. Kg2 Qd5+ 31. Kg1 Qd7 32. Kh2 Qd4 33. Kg1 Qd7 34. Kh2 h5 35. Kg1 Qd1+ 36. Kg2 Qd5+ 37. Kg1 Qd7 38. Kh2 Kh7 39. a4 Qd2 40. Kg1 Qd1+ 41. Kg2 Ne6 42. Nxb7 Nd4 43. Qb2 Qf3+ 44. Kh2 Ne2 45. Qb1+ e4 46. Qe1 f5 47. Nd8 Qd3 48. Ne6 e3 49. fxe3 Nc3 50. Qf2 Nxa4 51. Qf3 Qc2+ 52. Kh3 Qb1 53. Qxh5+ Kg8 54. Qe8+ Kh7 55. Qh5+ Kg8 56. Qe8+ Kh7 57. Qxc6 Nc3 58. Ng5+ 1-0

[Event "45th FIDE Olympiad 2024"]
[Site "Budapest"]
[Date "2024.09.15"]
[Round "5.203"]
[White "Blackburn, Jonathan L B"]
[Black "Monnaatsheko, Keletshabile"]
[Result "1/2-1/2"]
[ECO "D10"]
[WhiteElo "2202"]
[BlackElo "2064"]
[PlyCount "147"]
[EventDate "2024.09.05"]
[EventType "team-tourn"]
[EventCountry "HUN"]
[WhiteTeam "Wales"]
[BlackTeam "Botswana"]
[WhiteTeamCountry "WLS"]
[BlackTeamCountry "BOT"]
[TimeControl "40/5400+30:1800+30"]

1. d4 d5 2. c4 c6 3. Nc3 e5 4. e3 e4 5. Nge2 Nf6 6. cxd5 cxd5 7. Nf4 Nc6 8. Qb3 Na5 9. Bb5+ Bd7 10. Qa4 Bc6 11. Bxc6+ Nxc6 12. Qb3 Bb4 13. O-O Bxc3 14. bxc3 Qd7 15. Ba3 Na5 16. Qb4 b6 17. f3 O-O-O 18. Rab1 Nc4 19. Bc1 Rhe8 20. a4 a5 21. Qb5 Qxb5 22. Rxb5 Rd7 23. h4 h6 24. h5 Kb7 25. Kf2 Kc6 26. Re1 Rb7 27. Re2 Nd6 28. Rb1 b5 29. Ba3 Nc4 30. Bc5 Reb8 31. axb5+ Rxb5 32. Rxb5 Kxb5 33. Ra2 Kc6 34. Ba3 Rg8 35. Ra1 Re8 36. Bc1 Rb8 37. Ba3 Ra8 38. Ra2 exf3 39. gxf3 Rg8 40. Ra1 g5 41. hxg6 fxg6 42. Be7 Nh5 43. Nxh5 gxh5 44. Bc5 Re8 45. Re1 a4 46. e4 dxe4 47. Rxe4 Rxe4 48. fxe4 Nd2 49. Ke3 h4 50. Bb4 h3 51. d5+ Kd7 52. Kf2 Nxe4+ 53. Kg1 Nd2 54. Kh2 Nc4 55. Kxh3 Nb6 56. c4 Nxc4 57. Bc5 Nb2 58. Kg4 Nc4 59. Kh5 Nd6 60. Kxh6 Nf5+ 61. Kg5 Ne7 62. d6 Nc8 63. Kf5 Nxd6+ 64. Ke5 Nb7 65. Bb4 Kc6 66. Kd4 Kb5 67. Kc3 Nd8 68. Be7 Nc6 69. Bd6 Na5 70. Be7 Nc4 71. Bf8 Nb6 72. Kd4 Nc4 73. Kc3 Ne3 74. Kd4 1/2-1/2